Workbook

Sheet 目录
A1: 目录
A2: 附表3-1 | B2: 部门预算收支总表
A3: 附表3-2 | B3: 部门预算收入总表
A4: 附表3-3 | B4: 部门预算支出总表
A5: 附表3-4 | B5: 部门预算财政拨款收支总表
A6: 附表3-5 | B6: 部门预算一般公共预算财政拨款支出表
A7: 附表3-6 | B7: 部门预算一般公共预算财政拨款基本支出表
A8: 附表3-7 | B8: 部门预算政府性基金预算财政拨款支出表
A9: 附表3-8 | B9: 部门预算国有资本经营预算财政拨款支出表
A10: 附表3-9 | B10: 部门预算财政拨款“三公”经费支出表

Sheet 附表3-1
A1: 附表3-1
A2: 部门预算收支总表
D3: 公开01表
D4: 单位：万元
A5: 收入 | C5: 支出
A6: 项 目 | B6: 预算数 | C6: 项 目 | D6: 预算数
A7: 一、财政拨款收入 | B7: 2089.97 | C7: 一、一般公共服务支出 | D7: 1161.57
A8: 二、上级补助收入 | C8: 二、外交支出
A9: 三、事业收入 | C9: 三、国防支出
A10: 四、经营收入 | C10: 四、公共安全支出
A11: 五、附属单位上缴收入 | C11: 五、教育支出
A12: 六、其他收入 | C12: 六、科学技术支出
C13: 七、文化体育与传媒支出
C14: 八、社会保障和就业支出 | D14: 263.95
C15: 九、医疗卫生与计划生育支出 | D15: 140.87
C16: 十、节能环保支出
C17: 十一、城乡社区支出 | D17: 139.35
C18: 十二、农林水支出 | D18: 319.01
C19: 十三、交通运输支出
C20: 十四、资源勘探信息等支出
C21: 十五、商业服务业等支出
C22: 十六、金融支出
C23: 十七、援助其他地区支出
C24: 十八、国土海洋气象等支出
C25: 十九、住房保障支出 | D25: 65.22
C26: 二十、粮油物资储备支出
C27: 二十一、国债还本付息支出
C28: 二十二、其他支出
A29: 本年收入合计 | B29: 2089.97 | C29: 本年支出合计 | D29: =SUM(D7:D28) -> 2089.97
A30: 用事业基金弥补收支差额 | C30: 结余分配
A31: 年初结转和结余 | C31: 年末结转和结余
A32: 合计 | B32: 2089.97 | C32: 合计 | D32: 2089.97

Sheet 附表3-2
A1: 附表3-2
A2: 部门预算收入总表
J3: 公开02表
J4: 单位：万元
A5: 科目 | D5: 本年收入合计 | E5: 财政拨款收入 | F5: 上级补助收入 | G5: 事业收入 | H5: 经营收入 | I5: 附属单位上缴收入 | J5: 其他收入
A6: 功能分类科目编码 | C6: 科目名称
A8: 合计 | D8: =SUM(D9:D24) -> 2089.97 | E8: =SUM(E9:E24) -> 2089.97
A9: 2010301 | C9: 行政运行 | D9: 1121.57 | E9: 1121.57
A10: 2101101 | C10: 行政单位医疗 | D10: 105.97 | E10: =81.53+1.08+1.36+22 -> 105.97
A11: 2080501 | C11: 归口管理的行政单位离退休 | D11: 83.16 | E11: 83.16
A12: 2080502 | C12: 事业单位离退休 | D12: 87.91 | E12: 87.91
A13: 2210201 | C13: 住房公积金 | D13: 65.22 | E13: 65.22
A14: 2130152 | C14: 对高校毕业生到基层任职补助 | D14: 0.26 | E14: 0.26
A15: 2100717 | C15: 计划生育服务 | D15: 34.9 | E15: 34.9
A16: 2080805 | C16: 义务兵优待 | D16: 80.12 | E16: 80.12
A17: 2120501 | C17: 城乡社区环境卫生 | D17: 114.35 | E17: 114.35
A18: 2010308 | C18: 信访事务 | D18: 40 | E18: 40
A19: 2082102 | C19: 农村特困人员救助供养支出 | D19: 3.6 | E19: 3.6
A20: 2080803 | C20: 在乡复原、退伍军人生活补助 | D20: 1.13 | E20: 1.13
A21: 2080902 | C21: 军队移交政府的离退休人员安置 | D21: 6.26 | E21: 6.26
A22: 2082502 | C22: 其他农村生活救助 | D22: 1.77 | E22: 1.77
A23: 2130705 | C23: 对村民委员会和村党支部的补助 | D23: =E23 -> 318.75 | E23: =148.35+170.4 -> 318.75
A24: 2120804 | C24: 农村基础设施建设支出 | D24: 25 | E24: 25

Sheet 附表3-3
A1: 附表3-3
A2: 部门预算支出总表
I3: 公开03表
I4: 单位：万元
A5: 科目 | D5: 本年支出合计 | E5: 基本支出 | F5: 项目支出 | G5: 上缴上级支出 | H5: 经营支出 | I5: 对附属单位补助支出
A6: 功能分类科目编码 | C6: 科目名称
A8: 合计 | D8: =E8+F8 -> 2089.97 | E8: =SUM(E9:E19) -> 1634.23 | F8: =SUM(F14:F24) -> 455.74
A9: 2010301 | C9: 行政运行 | D9: =E9+F9 -> 1121.57 | E9: 1121.57
A10: 2101101 | C10: 行政单位医疗 | D10: 105.97 | E10: =81.53+1.08+1.36+22 -> 105.97
A11: 2080501 | C11: 归口管理的行政单位离退休 | D11: 83.16 | E11: 83.16
A12: 2080502 | C12: 事业单位离退休 | D12: 87.91 | E12: 87.91
A13: 2210201 | C13: 住房公积金 | D13: 65.22 | E13: 65.22
A14: 2130705 | C14: 对村民委员会和村党支部的补助 | D14: 318.75 | E14: 170.4 | F14: 148.35
A15: 2130152 | C15: 对高校毕业生到基层任职补助 | D15: 0.26 | F15: 0.26
A16: 2100717 | C16: 计划生育服务 | D16: 34.9 | F16: 34.9
A17: 2080805 | C17: 义务兵优待 | D17: 80.12 | F17: 80.12
A18: 2120501 | C18: 城乡社区环境卫生 | D18: 114.35 | F18: 114.35
A19: 2010308 | C19: 信访事务 | D19: 40 | F19: 40
A20: 2082102 | C20: 农村特困人员救助供养支出 | D20: 3.6 | F20: 3.6
A21: 2080803 | C21: 在乡复原、退伍军人生活补助 | D21: 1.13 | F21: 1.13
A22: 2080902 | C22: 军队移交政府的离退休人员安置 | D22: 6.26 | F22: 6.26
A23: 2082502 | C23: 其他农村生活救助 | D23: 1.77 | F23: 1.77
A24: 2120804 | C24: 农村基础设施建设支出 | D24: 25 | F24: 25

Sheet 附表3-4
A1: 附表3-4
A2: 部门预算财政拨款收支总表
G3: 公开04表
G4: 单位：万元
A5: 收入 | C5: 支出
A6: 项 目 | B6: 金额 | C6: 项 目 | D6: 合计 | E6: 一般公共预算财政拨款 | F6: 政府性基金预算财政拨款 | G6: 国有资本经营预算财政拨款
A7: 一、一般公共预算财政拨款 | B7: 1950.62 | C7: 一、一般公共服务支出 | D7: 1609.00 | E7: 1161.57
A8: 二、政府性基金预算财政拨款 | B8: 139.35 | C8: 二、外交支出
A9: 三、国有资本经营预算财政拨款 | C9: 三、国防支出
C10: 四、公共安全支出
C11: 五、教育支出
C12: 六、科学技术支出
C13: 七、文化体育与传媒支出
C14: 八、社会保障和就业支出 | D14: 92.88 | E14: 263.95
C15: 九、医疗卫生与计划生育支出 | D15: 34.90 | E15: 140.87
C16: 十、节能环保支出
C17: 十一、城乡社区支出 | D17: 139.35 | F17: 139.35
C18: 十二、农林水支出 | D18: 148.62 | E18: 319.01
C19: 十三、交通运输支出
C20: 十四、资源勘探信息等支出
C21: 十五、商业服务业等支出
C22: 十六、金融支出
C23: 十七、援助其他地区支出
C24: 十八、国土海洋气象等支出
C25: 十九、住房保障支出 | D25: 65.22 | E25: 65.22
C26: 二十、粮油物资储备支出
C27: 二十一、国债还本付息支出
C28: 二十二、其他支出
A29: 本年收入合计 | B29: 2089.97 | C29: 本年支出合计 | D29: =SUM(D7:D28) -> 2089.97 | E29: =SUM(E7:E28) -> 1950.62 | F29: =SUM(F7:F28) -> 139.35
A30: 年初财政拨款结转和结余 | C30: 年末结转和结余
A31: 合计 | B31: 2089.97 | C31: 合计

Sheet 附表3-5
A1: 附表3-5
A2: 部门预算一般公共预算财政拨款支出表
F3: 公开05表
F4: 单位：万元
A5: 科目 | D5: 合计 | E5: 基本支出 | F5: 项目支出
A6: 功能分类科目编码 | C6: 科目名称
A9: 合计 | D9: =SUM(E9:F9) -> 1,950.62 | E9: =SUM(E10:E23) -> 1,634.23 | F9: =SUM(F10:F23) -> 316.39
A10: 2010301 | C10: 行政运行 | D10: =E10+F10 -> 1121.57 | E10: 1121.57
A11: 2101101 | C11: 行政单位医疗 | D11: 105.97 | E11: =81.53+1.08+1.36+22 -> 105.97
A12: 2080501 | C12: 归口管理的行政单位离退休 | D12: 83.16 | E12: 83.16
A13: 2080502 | C13: 事业单位离退休 | D13: 87.91 | E13: 87.91
A14: 2210201 | C14: 住房公积金 | D14: 65.22 | E14: 65.22
A15: 2130705 | C15: 对村民委员会和村党支部的补助 | D15: 318.75 | E15: 170.4 | F15: 148.35
A16: 2130152 | C16: 对高校毕业生到基层任职补助 | D16: 0.26 | F16: 0.26
A17: 2100717 | C17: 计划生育服务 | D17: 34.9 | F17: 34.9
A18: 2080805 | C18: 义务兵优待 | D18: 80.12 | F18: 80.12
A19: 2010308 | C19: 信访事务 | D19: 40 | F19: 40
A20: 2082102 | C20: 农村特困人员救助供养支出 | D20: 3.6 | F20: 3.6
A21: 2080803 | C21: 在乡复原、退伍军人生活补助 | D21: 1.13 | F21: 1.13
A22: 2080902 | C22: 军队移交政府的离退休人员安置 | D22: 6.26 | F22: 6.26
A23: 2082502 | C23: 其他农村生活救助 | D23: 1.77 | F23: 1.77

Sheet 附表3-6
A1: 附表3-6
A2: 部门预算一般公共预算财政拨款基本支出表
F3: 公开06表
F4: 单位：万元
A5: 科目 | D5: 基本支出
A6: 经济分类科目编码 | C6: 科目名称 | D6: 合计 | E6: 人员经费 | F6: 公用经费
A7: 合计 | D7: =SUM(E7:F7) -> 1634.49 | E7: =SUM(E8:E30) -> 1504.3 | F7: =SUM(F8:F30) -> 130.19
A8: 30101 | C8: 基本工资 | D8: =SUM(E8:F8) -> 240.39 | E8: 240.39
A9: 30102 | C9: 津贴补贴 | D9: 215.42 | E9: 215.42
A10: 30103 | C10: 奖金 | D10: 7.3 | E10: 7.3
A11: 30104 | C11: 其他社会保障缴费 | D11: 243.81 | E11: 243.81
A12: 30107 | C12: 绩效工资 | D12: 167.62 | E12: 167.62
A13: 30199 | C13: 其他工资福利支出 | D13: 129.05 | E13: 129.05
A14: 30302 | C14: 退休费 | D14: 83.16 | E14: 83.16
A15: 30303 | C15: 退休费 | D15: 87.91 | E15: 87.91
A16: 30305 | C16: 生活补助 | D16: 3.66 | E16: 3.66
A17: 30307 | C17: 医疗费 | D17: 22 | E17: 22
A18: 30309 | C18: 奖励金 | D18: 0.43 | E18: 0.43
A19: 30311 | C19: 住房公积金 | D19: 65.22 | E19: 65.22
A20: 30399 | C20: 其他对个人和家庭的补助支出 | D20: 170.66 | E20: 170.66
A21: 30314 | C21: 采暖补贴 | D21: 67.67 | E21: 67.67
A22: 30201 | C22: 办公费 | D22: 9.6 | F22: 9.6
A23: 30206 | C23: 电费 | D23: 15 | F23: 15
A24: 30207 | C24: 邮电费 | D24: 4 | F24: 4
A25: 30208 | C25: 取暖费 | D25: 66.4 | F25: 66.4
A26: 30215 | C26: 会议费 | D26: 0.66 | F26: 0.66
A27: 30231 | C27: 公务用车运行维护费 | D27: 13.5 | F27: 13.5
A28: 30214 | C28: 租赁费 | D28: 10.21 | F28: 10.21
A29: 30228 | C29: 工会经费 | D29: 10.18 | F29: 10.18
A30: 30299 | C30: 其他商品和服务支出 | D30: 0.64 | F30: 0.64

Sheet 附表3-7
A1: 附表3-7
A2: 部门预算政府性基金预算财政拨款支出表
F4: 单位：万元
A5: 科目 | D5: 合计 | E5: 基本支出 | F5: 项目支出
A6: 功能分类科目编码 | C6: 科目名称
A9: 合计 | D9: 139.35 | F9: 139.35
A10: 2120804 | C10: 农村基础设施建设支出 | D10: 25 | F10: 25
A11: 2120501 | C11: 城乡社区环境卫生 | D11: 114.35 | F11: 114.35

Sheet 附表3-8
A1: 附表3-8
A2: 部门预算国有资本经营预算财政拨款支出表
F4: 单位：万元
A5: 科目 | D5: 合计 | E5: 基本支出 | F5: 项目支出
A6: 功能分类科目编码 | C6: 科目名称
A9: 合计
A16: 此表无数据

Sheet 附表3-9
A1: 附表3-9
A2: 部门预算财政拨款“三公”经费支出表
E3: 公开07表
E4: 单位：万元
A5: 项目 | B5: 资金来源
B6: 合计 | C6: 一般公共预算财政拨款 | D6: 政府性基金财政拨款 | E6: 国有资本经营预算财政拨款
A7: 合计 | B7: 13.5 | C7: 13.5
A8: 一、因公出国（境）费
A9: 二、公务用车购置及运行费 | B9: 13.5 | C9: 13.5
A10: 其中：公务用车购置费
A11: 公务用车运行费 | B11: 13.5 | C11: 13.5
A12: 三、公务接待费
